Workbook

Sheet Sheet1
A1: 2021年攀枝花市本级政府采购预算（第一批）批复表 | P1: 单位：元
A4: 对口科室 | B4: 单位预算编码 | C4: 单位名称 | D4: 品目名称 | E4: 单价 | F4: 数量 | G4: 合 计 | H4: 资金来源 | M4: 面向中小企业采购预留明细 | P4: 备注
H5: 财政安排资金 | K5: 资金初始下达文号 | L5: 其他资金 | M5: 预留方式 | N5: 预留比例 | O5: 预留金额
H6: 本级当年安排 | I6: 上年结转 | J6: 上级安排
A7: 教 | B7: 201001 | C7: 市委宣传部 | D7: 台式电脑 | E7: 5,000.00 | F7: 10 | G7: 50,000.00 | H7: 50,000.00 | K7: 攀财资预【2021】1号 | M7: 整体预留 | N7: 100% | O7: =G7*N7 -> 50,000.00
A8: 教 | B8: 201001 | C8: 市委宣传部 | D8: 笔记本电脑 | E8: 7,000.00 | F8: 10 | G8: 70,000.00 | H8: 70,000.00 | K8: 攀财资预【2021】1号 | M8: 整体预留 | N8: 100% | O8: 70,000.00
A9: 教 | B9: 201001 | C9: 市委宣传部 | D9: 高档复印机 | E9: 50,000.00 | F9: 2 | G9: 100,000.00 | H9: 100,000.00 | K9: 攀财资预【2021】1号 | M9: 整体预留 | N9: 100% | O9: 100,000.00
A10: 教 | B10: 201001 | C10: 市委宣传部 | D10: 扫描仪 | E10: 3,500.00 | F10: 2 | G10: 7,000.00 | H10: 7,000.00 | K10: 攀财资预【2021】1号 | M10: 整体预留 | N10: 100% | O10: 7,000.00
A11: 教 | B11: 201001 | C11: 市委宣传部 | D11: A4普通激光打印机 | E11: 3,000.00 | F11: 8 | G11: 24,000.00 | H11: 24,000.00 | K11: 攀财资预【2021】1号 | M11: 整体预留 | N11: 100% | O11: 24,000.00
A12: 教 | B12: 201001 | C12: 市委宣传部 | D12: 传真机 | E12: 3,000.00 | F12: 2 | G12: 6,000.00 | H12: 6,000.00 | K12: 攀财资预【2021】1号 | M12: 整体预留 | N12: 100% | O12: 6,000.00
A13: 教 | B13: 201001 | C13: 市委宣传部 | D13: 制作城市书房电子地图 | E13: 300,000.00 | F13: 1 | G13: 300,000.00 | H13: 300,000.00 | K13: 攀财资预【2021】1号 | M13: 整体预留 | N13: 100% | O13: 300,000.00
A14: 教 | B14: 201001 | C14: 市委宣传部 | D14: 小计 | G14: =SUM(G7:G13) -> 557,000.00 | H14: =SUM(H7:H13) -> 557,000.00 | O14: =SUM(O6:O13) -> 557,000.00
A15: 教 | B15: 205001 | C15: 攀枝花市文化广播电视和旅游局 | D15: 空调 | E15: 10,000.00 | F15: 1 | G15: =E15*F15 -> 10,000.00 | H15: 10,000.00 | K15: 攀财资预【2021】1号 2021年初预算-监播资金 | M15: 整体预留 | N15: 100% | O15: 10,000.00 | P15: 市广播电视监播中心散热需要（大3P及以上功率）
A16: 教 | B16: 205001 | C16: 攀枝花市文化广播电视和旅游局 | D16: 彩打复印一体机(A4) | E16: 7,000.00 | F16: 1 | G16: =E16*F16 -> 7,000.00 | H16: 7,000.00 | K16: 攀财资预【2021】1号 2021年初预算-监播资金 | M16: 整体预留 | N16: 100% | O16: 7,000.00 | P16: 人事档案工作需要
A17: 教 | B17: 205001 | C17: 攀枝花市文化广播电视和旅游局 | D17: 彩色打印机（A4） | E17: 3,000.00 | F17: 3 | G17: 9,000.00 | H17: 9,000.00 | K17: 攀财资预【2021】1号 2021年初预算-监播资金 | M17: 整体预留 | N17: 100% | O17: 9,000.00
A18: 教 | B18: 205001 | C18: 攀枝花市文化广播电视和旅游局 | D18: 小计 | G18: =SUM(G15:G17) -> 26,000.00 | H18: =SUM(H15:H17) -> 26,000.00 | O18: =SUM(O15:O17) -> 26,000.00
A19: 教 | B19: 205003 | C19: 攀枝花市文化馆 | D19: 双面打印机 | E19: 3,000.00 | F19: 4 | G19: 12,000.00 | H19: 12,000.00 | K19: 攀财资预【2021】1号 | M19: 整体预留 | N19: 100% | O19: 12,000.00
A20: 教 | B20: 205003 | C20: 攀枝花市文化馆 | D20: 台式计算机 | E20: 7,000.00 | F20: 3 | G20: 21,000.00 | H20: 21,000.00 | K20: 攀财资预【2021】1号 | M20: 整体预留 | N20: 100% | O20: 21,000.00
A21: 教 | B21: 205003 | C21: 攀枝花市文化馆 | D21: 笔记本电脑 | E21: 8,000.00 | F21: 1 | G21: 8,000.00 | H21: 8,000.00 | K21: 攀财资预【2021】1号 | M21: 整体预留 | N21: 100% | O21: 8,000.00
A22: 教 | B22: 205003 | C22: 攀枝花市文化馆 | D22: 空调1.5匹 | E22: 3,500.00 | F22: 2 | G22: 7,000.00 | H22: 7,000.00 | K22: 攀财资预【2021】1号 | M22: 整体预留 | N22: 100% | O22: 7,000.00
A23: 教 | B23: 205003 | C23: 攀枝花市文化馆 | D23: 小计 | G23: =SUM(G19:G22) -> 48,000.00 | H23: =SUM(H19:H22) -> 48,000.00 | O23: =SUM(O19:O22) -> 48,000.00
A24: 教 | B24: 205005 | C24: 攀枝花市文艺创评室 | D24: 黑白激光A4双面打印机 | E24: 5,000.00 | F24: 1 | G24: 5,000.00 | H24: 5,000.00 | K24: 攀财资预【2021】1号 | M24: 整体预留 | N24: 100% | O24: 5,000.00
A25: 教 | B25: 205005 | C25: 攀枝花市文艺创评室 | D25: 小计 | G25: =SUM(G24) -> 5,000.00 | H25: =SUM(H24) -> 5,000.00 | O25: =SUM(O24) -> 5,000.00
A26: 教 | B26: 205006 | C26: 攀枝花市文化市场综合行政执法支队 | D26: 便携式计算机 | E26: 5,000.00 | F26: 2 | G26: 10,000.00 | H26: 10,000.00 | K26: 攀财资预【2021】1号 | M26: 整体预留 | N26: 100% | O26: 10,000.00
A27: 教 | B27: 205006 | C27: 攀枝花市文化市场综合行政执法支队 | D27: 台式计算机（含一体机） | E27: 4,500.00 | F27: 3 | G27: 13,500.00 | H27: 13,500.00 | K27: 攀财资预【2021】1号 | M27: 整体预留 | N27: 100% | O27: 13,500.00
A28: 教 | B28: 205006 | C28: 攀枝花市文化市场综合行政执法支队 | D28: 黑白激光A4双面打印机 | E28: 3,000.00 | F28: 2 | G28: 6,000.00 | H28: 6,000.00 | K28: 攀财资预【2021】1号 | M28: 整体预留 | N28: 100% | O28: 6,000.00
A29: 教 | B29: 205006 | C29: 攀枝花市文化市场综合行政执法支队 | D29: 小计 | G29: =SUM(G26:G28) -> 29,500.00 | H29: =SUM(H26:H28) -> 29,500.00 | O29: =SUM(O26:O28) -> 29,500.00
A30: 教 | B30: 205007 | C30: 攀枝花市文化旅游公共服务中心 | D30: 台式电脑 | E30: 5,000.00 | F30: 1 | G30: 5,000.00 | H30: 5,000.00 | K30: 攀财资预[2021]1号 | M30: 整体预留 | N30: 100% | O30: 5,000.00
A31: 教 | B31: 205007 | C31: 攀枝花市文化旅游公共服务中心 | D31: 便携式计算机 | E31: 7,000.00 | F31: 1 | G31: 7,000.00 | H31: 7,000.00 | K31: 攀财资预[2021]1号 | M31: 整体预留 | N31: 100% | O31: 7,000.00
A32: 教 | B32: 205007 | C32: 攀枝花市文化旅游公共服务中心 | D32: 彩色复印机打印一体机 | E32: 40,000.00 | F32: 1 | G32: 40,000.00 | H32: 40,000.00 | K32: 攀财资预[2021]1号 | M32: 整体预留 | N32: 100% | O32: 40,000.00 | P32: 单位独立无复印机，项目招商需要打印、复印彩色资料
A33: 教 | B33: 205007 | C33: 攀枝花市文化旅游公共服务中心 | D33: A4普通激光双面打印机 | E33: 3,000.00 | F33: 1 | G33: 3,000.00 | H33: 3,000.00 | K33: 攀财资预[2021]1号 | M33: 整体预留 | N33: 100% | O33: 3,000.00
A34: 教 | B34: 205007 | C34: 攀枝花市文化旅游公共服务中心 | D34: 分体壁挂式空调机 | E34: 3,200.00 | F34: 2 | G34: 6,400.00 | H34: 6,400.00 | K34: 攀财资预[2021]1号 | M34: 整体预留 | N34: 100% | O34: 6,400.00 | P34: 大1匹挂机（变频）
A35: 教 | B35: 205007 | C35: 攀枝花市文化旅游公共服务中心 | D35: 小计 | G35: =SUM(G30:G34) -> 61,400.00 | H35: =SUM(H30:H34) -> 61,400.00 | O35: =SUM(O30:O34) -> 61,400.00
A36: 教 | B36: 205010 | C36: 攀枝花市文化艺术中心 | D36: 挂机空调 | E36: 3,000.00 | F36: 1 | G36: 3,000.00 | H36: 3,000.00 | K36: 非税收入征管成本性支出 | M36: 整体预留 | N36: 100% | O36: 3,000.00
A37: 教 | B37: 205010 | C37: 攀枝花市文化艺术中心 | D37: 柜机空调 | E37: 7,000.00 | F37: 1 | G37: 7,000.00 | H37: 7,000.00 | K37: 非税收入征管成本性支出 | M37: 整体预留 | N37: 100% | O37: 7,000.00
A38: 教 | B38: 205010 | C38: 攀枝花市文化艺术中心 | D38: 台式电脑 | E38: 5,000.00 | F38: 3 | G38: 15,000.00 | H38: 15,000.00 | K38: 非税收入征管成本性支出 | M38: 整体预留 | N38: 100% | O38: 15,000.00
A39: 教 | B39: 205010 | C39: 攀枝花市文化艺术中心 | D39: 小计 | G39: =SUM(G36:G38) -> 25,000.00 | H39: =SUM(H36:H38) -> 25,000.00 | O39: =SUM(O36:O38) -> 25,000.00
A40: 教 | B40: 205013 | C40: 攀枝花中国三线建设博物馆 | D40: 台式计算机（含一体机） | E40: 4,500.00 | F40: 15 | G40: 67,500.00 | H40: 67,500.00 | K40: 攀财资预[2021]1号 | M40: 整体预留 | N40: 100% | O40: 67,500.00
A41: 教 | B41: 205013 | C41: 攀枝花中国三线建设博物馆 | D41: 便携式计算机 | E41: 7,000.00 | F41: 1 | G41: 7,000.00 | H41: 7,000.00 | K41: 攀财资预[2021]1号 | M41: 整体预留 | N41: 100% | O41: 7,000.00
A42: 教 | B42: 205013 | C42: 攀枝花中国三线建设博物馆 | D42: 计算机软件 | E42: 7,680.00 | F42: 4 | G42: 92,160.00 | H42: 92,160.00 | K42: 攀财资预[2021]1号 | M42: 整体预留 | N42: 100% | O42: 92,160.00
A43: 教 | B43: 205013 | C43: 攀枝花中国三线建设博物馆 | D43: 小计 | G43: =SUM(G40:G42) -> 166,660.00 | H43: =SUM(H40:H42) -> 166,660.00 | O43: =SUM(O40:O42) -> 166,660.00
A44: 教 | B44: 203001 | C44: 市教育和体育局 | D44: 台式电脑 | E44: 4,500.00 | F44: 7 | G44: 31,500.00 | H44: 31,500.00 | K44: 攀财资预（2021）1号 | M44: 整体预留 | N44: 100% | O44: 31,500.00
A45: 教 | B45: 203001 | C45: 市教育和体育局 | D45: 彩色激光打印机A4 | E45: 3,500.00 | F45: 1 | G45: 3,500.00 | H45: 3,500.00 | K45: 攀财资预（2021）1号 | M45: 整体预留 | N45: 100% | O45: 3,500.00
A46: 教 | B46: 203001 | C46: 市教育和体育局 | D46: 双面打印机 | E46: 2,500.00 | F46: 2 | G46: 5,000.00 | H46: 5,000.00 | K46: 攀财资预（2021）1号 | M46: 整体预留 | N46: 100% | O46: 5,000.00
A47: 教 | B47: 203001 | C47: 市教育和体育局 | D47: 笔记本电脑 | E47: 6,000.00 | F47: 4 | G47: 24,000.00 | H47: 24,000.00 | K47: 攀财资预（2021）1号 | M47: 整体预留 | N47: 100% | O47: 24,000.00
A48: 教 | B48: 203001 | C48: 市教育和体育局 | D48: 2021环攀枝花国际公路自行车赛 | E48: 8,900,000.00 | F48: 1 | G48: 8,900,000.00 | H48: 8,900,000.00 | K48: 社会企业赞助 | M48: 不预留 | O48: 0.00
A49: 教 | B49: 203001 | C49: 市教育和体育局 | D49: 小计 | G49: =SUM(G44:G48) -> 8,964,000.00 | H49: =SUM(H44:H48) -> 8,964,000.00 | O49: =SUM(O44:O48) -> 64,000.00
A50: 教 | B50: 203002 | C50: 市外国语学校 | D50: 教室一体机（已网上备案，60万，数量1台） | E50: 30,000.00 | F50: 24 | G50: 720,000.00 | H50: 720,000.00 | K50: 攀财资教{2021]4号 | L50: 200,000.00 | M50: 整体预留 | N50: 100% | O50: =G50*N50 -> 720,000.00
A51: 教 | B51: 203002 | C51: 市外国语学校 | D51: 学生餐桌更换 | E51: 800.00 | F51: 279 | G51: 223,200.00 | H51: 223,200.00 | K51: 攀财资教{2021]4号 | M51: 整体预留 | N51: 100% | O51: =G51*N51 -> 223,200.00
A52: 教 | B52: 203002 | C52: 市外国语学校 | D52: 教师办公桌采购 | E52: 1,100.00 | F52: 100 | G52: 110,000.00 | H52: 110,000.00 | K52: 攀财资教{2021]4号 | M52: 整体预留 | N52: 100% | O52: 110,000.00
A53: 教 | B53: 203002 | C53: 市外国语学校 | D53: 学生铁床采购 | E53: 0.10 | F53: 229 | G53: 217,550.00 | H53: 217,550.00 | K53: 攀财资教{2021]4号 | M53: 整体预留 | N53: 100% | O53: 217,550.00
A54: 教 | B54: 203002 | C54: 市外国语学校 | D54: 扫描仪 | E54: 7,000.00 | F54: 1 | G54: 7,000.00 | H54: 7,000.00 | K54: 攀财资教{2021]4号 | M54: 整体预留 | N54: 100% | O54: 7,000.00
A55: 教 | B55: 203002 | C55: 市外国语学校 | D55: 空调 | E55: 2,500.00 | F55: 11 | G55: 27,500.00 | H55: 27,500.00 | K55: 攀财资教{2021]4号 | M55: 整体预留 | N55: 100% | O55: 27,500.00
A56: 教 | B56: 203002 | C56: 市外国语学校 | D56: 小计 | G56: =SUM(G50:G55) -> 1,305,250.00 | H56: =SUM(H50:H55) -> 1,305,250.00 | O56: =SUM(O50:O55) -> 1,305,250.00
A57: 教 | B57: 203003 | C57: 攀枝花市第二初级中学校 | D57: 云微机教室 | E57: 350,000.00 | F57: 1 | G57: =E57*F57 -> 350,000.00 | H57: 350,000.00 | K57: 攀财资教（2021）4号 | M57: 整体预留 | N57: 100% | O57: 350,000.00
A58: 教 | B58: 203003 | C58: 攀枝花市第二初级中学校 | D58: 校园网网络安全感知源系统及风险管控 | E58: 170,000.00 | F58: 1 | G58: 170,000.00 | H58: 170,000.00 | K58: 攀财资教（2021）4号 | M58: 整体预留 | N58: 100% | O58: 170,000.00
A59: 教 | B59: 203003 | C59: 攀枝花市第二初级中学校 | D59: 户外P8全彩色LED显示屏 | E59: 140,000.00 | F59: 1 | G59: 140,000.00 | H59: 140,000.00 | K59: 教育费附加及攀财资教（2021）4号 | M59: 整体预留 | N59: 100% | O59: 140,000.00
A60: 教 | B60: 203003 | C60: 攀枝花市第二初级中学校 | D60: 台式电脑 | E60: 5,000.00 | F60: 20 | G60: 100,000.00 | H60: 100,000.00 | K60: 攀财资教（2021）4号 | M60: 整体预留 | N60: 100% | O60: 100,000.00
A61: 教 | B61: 203003 | C61: 攀枝花市第二初级中学校 | D61: 投影仪 | E61: 8,700.00 | F61: 1 | G61: 8,700.00 | H61: 8,700.00 | K61: 攀财资教（2021）4号 | M61: 整体预留 | N61: 100% | O61: 8,700.00
A62: 教 | B62: 203003 | C62: 攀枝花市第二初级中学校 | D62: 打印机 | E62: 3,000.00 | F62: 4 | G62: 12,000.00 | H62: 12,000.00 | K62: 攀财资教（2021）4号 | M62: 整体预留 | N62: 100% | O62: 12,000.00
A63: 教 | B63: 203003 | C63: 攀枝花市第二初级中学校 | D63: 扫描仪 | E63: 8,500.00 | F63: 1 | G63: 8,500.00 | H63: 8,500.00 | K63: 攀财资教（2021）4号 | M63: 整体预留 | N63: 100% | O63: 8,500.00
A64: 教 | B64: 203003 | C64: 攀枝花市第二初级中学校 | D64: 复印机 | E64: 7,300.00 | F64: 1 | G64: 7,300.00 | H64: 7,300.00 | K64: 攀财资教（2021）4号 | M64: 整体预留 | N64: 100% | O64: 7,300.00
A65: 教 | B65: 203003 | C65: 攀枝花市第二初级中学校 | D65: 一体机 | E65: 32,000.00 | F65: 12 | G65: 384,000.00 | H65: 384,000.00 | K65: 教育费附加及攀财资教（2021）4号 | M65: 整体预留 | N65: 100% | O65: 384,000.00
A66: 教 | B66: 203003 | C66: 攀枝花市第二初级中学校 | D66: 体育馆地板及灯光改造 | E66: 350,000.00 | F66: 1 | G66: 350,000.00 | H66: 350,000.00 | K66: 教育费附加 | M66: 整体预留 | N66: 100% | O66: 350,000.00
A67: 教 | B67: 203003 | C67: 攀枝花市第二初级中学校 | D67: 教师办公桌椅 | E67: 1,200.00 | F67: 140 | G67: 168,000.00 | H67: 168,000.00 | K67: 教育费附加 | M67: 整体预留 | N67: 100% | O67: 168,000.00
A68: 教 | B68: 203003 | C68: 攀枝花市第二初级中学校 | D68: 空调 | E68: 2,500.00 | F68: 1 | G68: 2,500.00 | H68: 2,500.00 | K68: 攀财资教（2021）4号 | M68: 整体预留 | N68: 100% | O68: 2,500.00
A69: 教 | B69: 203003 | C69: 攀枝花市第二初级中学校 | D69: 小计 | G69: =SUM(G57:G68) -> 1,701,000.00 | H69: =SUM(H57:H68) -> 1,701,000.00 | O69: =SUM(O57:O68) -> 1,701,000.00
A70: 教 | B70: 203004 | C70: 攀枝花市第三高级中学校 | D70: 体育馆屋顶及室内修缮 | E70: 2,500,000.00 | F70: 1 | G70: 2,500,000.00 | H70: 2,500,000.00 | K70: 攀财资预（2021）1号 | M70: 整体预留 | N70: 100% | O70: 2,500,000.00 | P70: 优先考虑屋顶维修200万元.其次一楼木地板更换为地胶20万元,二楼厕所改造为体育多功能教室30万元
A71: 教 | B71: 203004 | C71: 攀枝花市第三高级中学校 | D71: 教泽园女生公寓、高三男生女生宿舍加装空气能 | E71: 1,000,000.00 | F71: 1 | G71: 1,000,000.00 | H71: 1,000,000.00 | K71: 攀财资预（2021）1号 | M71: 整体预留 | N71: 100% | O71: 1,000,000.00 | P71: 解决冬天学生洗澡问题
A72: 教 | B72: 203004 | C72: 攀枝花市第三高级中学校 | D72: 图书馆教研观课教室新建及阅览室改造 | E72: 2,000,000.00 | F72: 1 | G72: 2,000,000.00 | H72: 2,000,000.00 | K72: 攀财资预（2021）1号 | M72: 整体预留 | N72: 100% | O72: 2,000,000.00 | P72: 会议、培训、公开课等用
A73: 教 | B73: 203004 | C73: 攀枝花市第三高级中学校 | D73: 教学用智能黑板 | E73: 27,500.00 | F73: 66 | G73: 1,815,000.00 | H73: 1,815,000.00 | K73: 攀财资预（2021）1号 | M73: 整体预留 | N73: 100% | O73: 1,815,000.00 | P73: 更新班班桶
A74: 教 | B74: 203004 | C74: 攀枝花市第三高级中学校 | D74: 复印扫描打印一体机 | E74: 20,000.00 | F74: 5 | G74: 100,000.00 | H74: 100,000.00 | K74: 攀财资预（2021）1号 | M74: 整体预留 | N74: 100% | O74: 100,000.00 | P74: 档案室、办公室、教务科、德育科、现教科使用
A75: 教 | B75: 203004 | C75: 攀枝花市第三高级中学校 | D75: 学生宿舍屋顶漏水维修 | E75: 1,500,000.00 | F75: 1 | G75: 1,500,000.00 | H75: 1,500,000.00 | K75: 攀财资预（2021）1号 | M75: 整体预留 | N75: 100% | O75: 1,500,000.00 | P75: 屋顶漏水存在安全隐患
A76: 教 | B76: 203004 | C76: 攀枝花市第三高级中学校 | D76: 办公用打印机 | E76: 1,800.00 | F76: 10 | G76: 18,000.00 | H76: 18,000.00 | K76: 攀财资预（2021）1号 | M76: 整体预留 | N76: 100% | O76: 18,000.00 | P76: 档案室、办公室、教务科、德育科、现教科、三个年级等使用
A77: 教 | B77: 203004 | C77: 攀枝花市第三高级中学校 | D77: 小计 | G77: =SUM(G70:G76) -> 8,933,000.00 | H77: =SUM(H70:H76) -> 8,933,000.00 | O77: =SUM(O70:O76) -> 8,933,000.00
A78: 教 | B78: 203018 | C78: 攀枝花市第七高级中学校 | D78: 速印机（备案）（已网上备案0707） | E78: 40,000.00 | F78: 2 | G78: =H78+I78+J78 -> 80,000.00 | H78: 80,000.00 | K78: 攀财资预（2021）1号 | M78: 整体预留 | N78: 100% | O78: 80,000.00
A79: 教 | B79: 203018 | C79: 攀枝花市第七高级中学校 | D79: 教学用笔记本电脑（备案）（已网上备案0707） | E79: 4,500.00 | F79: 14 | G79: 63,000.00 | H79: 63,000.00 | K79: 攀财资预（2021）1号 | M79: 整体预留 | N79: 100% | O79: 63,000.00
A80: 教 | B80: 203018 | C80: 攀枝花市第七高级中学校 | D80: 激光打印机（备案）（已网上备案0707） | E80: 1,500.00 | F80: 5 | G80: 7,500.00 | H80: 7,500.00 | K80: 攀财资预（2021）1号 | M80: 整体预留 | N80: 100% | O80: 7,500.00
A81: 教 | B81: 203018 | C81: 攀枝花市第七高级中学校 | D81: 学生课桌椅（已网上备案0707）（网报采购） | E81: 330.00 | F81: 800 | G81: 264,000.00 | H81: 264,000.00 | K81: 攀财资预（2021）1号 | M81: 整体预留 | N81: 100% | O81: 264,000.00
A82: 教 | B82: 203018 | C82: 攀枝花市第七高级中学校 | D82: 西城校区学生宿舍修缮项目 | E82: 8,600,000.00 | F82: 1 | G82: 8,600,000.00 | H82: 8,600,000.00 | K82: 攀财资预（2021）1号 | M82: 不预留 | O82: 0.00
A83: 教 | B83: 203018 | C83: 攀枝花市第七高级中学校 | D83: 西城校区校门和文化广场建设（备案）(西城校区大门修缮改造金额为1999643元)（已网上备案0707） | E83: 2,818,700.00 | F83: 1 | G83: 2,818,700.00 | H83: 2,818,700.00 | K83: 攀财资预（2021）1号 | M83: 整体预留 | N83: 100% | O83: 2,818,700.00
A84: 教 | B84: 203018 | C84: 攀枝花市第七高级中学校 | D84: 西城校区景观塔建设 | E84: 1,148,600.00 | F84: 1 | G84: 1,148,600.00 | H84: 1,148,600.00 | K84: 攀财资预（2021）1号 | M84: 整体预留 | N84: 100% | O84: 1,148,600.00
A85: 教 | B85: 203018 | C85: 攀枝花市第七高级中学校 | D85: 西城校区停车场建设 | E85: 1,084,500.00 | F85: 1 | G85: 1,084,500.00 | H85: 1,084,500.00 | K85: 攀财资预（2021）1号 | M85: 整体预留 | N85: 100% | O85: 1,084,500.00
A86: 教 | B86: 203018 | C86: 攀枝花市第七高级中学校 | D86: 财务内控信息化软件项目（备案）（已网上备案0707） | E86: 100,000.00 | F86: 1 | G86: 100,000.00 | H86: 100,000.00 | K86: 攀财资预（2021）1号 | M86: 整体预留 | N86: 100% | O86: 100,000.00
A87: 教 | B87: 203018 | C87: 攀枝花市第七高级中学校 | D87: 复印纸（备案）（已网上备案0707） | E87: 165.00 | F87: 1200 | G87: 198,000.00 | H87: 198,000.00 | K87: 攀财资预（2021）1号 | M87: 整体预留 | N87: 100% | O87: 198,000.00
A88: 教 | B88: 203018 | C88: 攀枝花市第七高级中学校 | D88: 小计 | G88: =SUM(G78:G87) -> 14,364,300.00 | H88: =SUM(H78:H87) -> 14,364,300.00 | O88: =SUM(O78:O87) -> 5,764,300.00
A89: 教 | B89: 203008 | C89: 攀枝花市实验学校 | D89: 学生宿舍床、柜等设施 | E89: 1,600.00 | F89: 1100 | G89: 1,760,000.00 | H89: 1,760,000.00 | K89: 暂无 | M89: 整体预留 | N89: 100% | O89: 1,760,000.00
A90: 教 | B90: 203008 | C90: 攀枝花市实验学校 | D90: 教师周转房床、柜、桌椅 | E90: 2,000.00 | F90: 96 | G90: 192,000.00 | H90: 192,000.00 | K90: 暂无 | M90: 整体预留 | N90: 100% | O90: 192,000.00
A91: 教 | B91: 203008 | C91: 攀枝花市实验学校 | D91: A3黑白网络打印机 | E91: 10,000.00 | F91: 2 | G91: 20,000.00 | H91: 20,000.00 | K91: 攀财资预（2021）1号 | M91: 整体预留 | N91: 100% | O91: 20,000.00
A92: 教 | B92: 203008 | C92: 攀枝花市实验学校 | D92: A4普通激光打印机 | E92: 3,000.00 | F92: 5 | G92: 15,000.00 | H92: 15,000.00 | K92: 攀财资预（2021）1号 | M92: 整体预留 | N92: 100% | O92: 15,000.00
A93: 教 | B93: 203008 | C93: 攀枝花市实验学校 | D93: 台式电脑 | E93: 5,000.00 | F93: 20 | G93: 100,000.00 | H93: 100,000.00 | K93: 攀财资预（2021）1号 | M93: 整体预留 | N93: 100% | O93: 100,000.00
A94: 教 | B94: 203008 | C94: 攀枝花市实验学校 | D94: 理、化、生实验室改造（含更换桌椅） | E94: 150,000.00 | F94: 6 | G94: 900,000.00 | H94: 900,000.00 | K94: 攀财资预（2021）1号 | M94: 整体预留 | N94: 100% | O94: 900,000.00
A95: 教 | B95: 203008 | C95: 攀枝花市实验学校 | D95: 触屏教学一体机 | E95: 35,000.00 | F95: 15 | G95: 525,000.00 | H95: 525,000.00 | K95: 攀财资预（2021）1号 | M95: 整体预留 | N95: 100% | O95: 525,000.00
A96: 教 | B96: 203008 | C96: 攀枝花市实验学校 | D96: 2匹空调挂机(定频） | E96: 4,500.00 | F96: 2 | G96: 9,000.00 | H96: 9,000.00 | K96: 攀财资预（2021）1号 | M96: 整体预留 | N96: 100% | O96: 9,000.00
A97: 教 | B97: 203008 | C97: 攀枝花市实验学校 | D97: 大3匹空调柜机（定频） | E97: 5,400.00 | F97: 2 | G97: 10,800.00 | H97: 10,800.00 | K97: 攀财资预（2021）1号 | M97: 整体预留 | N97: 100% | O97: 10,800.00
A98: 教 | B98: 203008 | C98: 攀枝花市实验学校 | D98: 速印机 | E98: 40,000.00 | F98: 1 | G98: 40,000.00 | J98: 40,000.00 | K98: 攀财资教（2021）4号 | M98: 整体预留 | N98: 100% | O98: 40,000.00
A99: 教 | B99: 203008 | C99: 攀枝花市实验学校 | D99: 知新厅LED显示屏 | E99: 170,000.00 | F99: 1 | G99: 170,000.00 | J99: 170,000.00 | K99: 攀财资教（2021）4号 | M99: 整体预留 | N99: 100% | O99: 170,000.00
A100: 教 | B100: 203008 | C100: 攀枝花市实验学校 | D100: 办公桌椅 | E100: 500,000.00 | F100: 1 | G100: 500,000.00 | J100: 500,000.00 | K100: 攀财资教（2021）4号 | M100: 整体预留 | N100: 100% | O100: 500,000.00
A101: 教 | B101: 203008 | C101: 攀枝花市实验学校 | D101: 台式电脑（微机室用） | E101: 3,000.00 | F101: 60 | G101: 180,000.00 | J101: 180,000.00 | K101: 攀财资教（2021）4号 | M101: 整体预留 | N101: 100% | O101: 180,000.00
A102: 教 | B102: 203008 | C102: 攀枝花市实验学校 | D102: 复印纸 | E102: 200.00 | F102: 300 | G102: 60,000.00 | J102: 60,000.00 | K102: 攀财资教（2021）4号 | M102: 整体预留 | N102: 100% | O102: 60,000.00
A103: 教 | B103: 203008 | C103: 攀枝花市实验学校 | D103: 小计 | G103: =SUM(G89:G102) -> 4,481,800.00 | H103: =SUM(H89:H102) -> 3,531,800.00 | J103: =SUM(J89:J102) -> 950,000.00 | O103: =SUM(O89:O102) -> 4,481,800.00
A104: 教 | B104: 203016 | C104: 市实验幼儿园 | D104: 科技城园区智慧幼儿园管理系统 | E104: 1,450,000.00 | F104: 1 | G104: 1,450,000.00 | J104: 1,450,000.00 | K104: 攀财资教〔2021〕11号 | M104: 部分预留 | N104: 60% | O104: =G104*N104 -> 870,000.00 | P104: 中央和省级部分资金
A105: 教 | B105: 203016 | C105: 市实验幼儿园 | D105: 科技城园区食堂设备 | E105: 800,000.00 | F105: 1 | G105: 800,000.00 | H105: 800,000.00 | K105: 攀财资预〔2021〕1号 | M105: 整体预留 | N105: 100% | O105: =G105*N105 -> 800,000.00 | P105: 教育收费安排
A106: 教 | B106: 203016 | C106: 市实验幼儿园 | D106: 科技城园区定制设施设备 | E106: 2,800,000.00 | F106: 1 | G106: 2,800,000.00 | H106: 250,000.00 | J106: 2,550,000.00 | K106: 攀财资教〔2021〕11号 攀财资预〔2021〕1号 | M106: 部分预留 | N106: 60% | O106: 1,680,000.00 | P106: 中央和省级部分资金
A107: 教 | B107: 203016 | C107: 市实验幼儿园 | D107: 科技城园区拆除工程 | E107: 800,000.00 | F107: 1 | G107: 800,000.00 | H107: 800,000.00 | K107: 攀财资预〔2021〕1号 | M107: 整体预留 | N107: 100% | O107: 800,000.00 | P107: 教育收费安排
A108: 教 | B108: 203016 | C108: 市实验幼儿园 | D108: 科技城园区家具用具 | E108: 100,000.00 | F108: 1 | G108: 100,000.00 | H108: 100,000.00 | K108: 攀财资预〔2021〕1号 | M108: 整体预留 | N108: 100% | O108: 100,000.00 | P108: 教育收费安排
A109: 教 | B109: 203016 | C109: 市实验幼儿园 | D109: 彩色A3复印机 | E109: 9,000.00 | F109: 1 | G109: 9,000.00 | H109: 9,000.00 | K109: 攀财资预〔2021〕1号 | M109: 整体预留 | N109: 100% | O109: 9,000.00 | P109: 教育收费安排
A110: 教 | B110: 203016 | C110: 市实验幼儿园 | D110: 台式电脑 | E110: 5,000.00 | F110: 16 | G110: 80,000.00 | H110: 80,000.00 | K110: 攀财资预〔2021〕1号 | M110: 整体预留 | N110: 100% | O110: 80,000.00 | P110: 教育收费安排
A111: 教 | B111: 203016 | C111: 市实验幼儿园 | D111: 打印一体机 | E111: 2,400.00 | F111: 6 | G111: 14,400.00 | H111: 14,400.00 | K111: 攀财资预〔2021〕1号 | M111: 整体预留 | N111: 100% | O111: 14,400.00 | P111: 教育收费安排
A112: 教 | B112: 203016 | C112: 市实验幼儿园 | D112: 挂式1.5P空调 | E112: 3,200.00 | F112: 10 | G112: 32,000.00 | H112: 32,000.00 | K112: 攀财资预〔2021〕1号 | M112: 整体预留 | N112: 100% | O112: 32,000.00 | P112: 教育收费安排
A113: 教 | B113: 203016 | C113: 市实验幼儿园 | D113: 挂式3P空调 | E113: 7,900.00 | F113: 13 | G113: 102,700.00 | H113: 102,700.00 | K113: 攀财资预〔2021〕1号 | M113: 整体预留 | N113: 100% | O113: 102,700.00 | P113: 教育收费安排
A114: 教 | B114: 203016 | C114: 市实验幼儿园 | D114: 柜式3P空调 | E114: 7,900.00 | F114: 3 | G114: 23,700.00 | H114: 23,700.00 | K114: 攀财资预〔2021〕1号 | M114: 整体预留 | N114: 100% | O114: 23,700.00 | P114: 教育收费安排
A115: 教 | B115: 203016 | C115: 市实验幼儿园 | D115: 笔记本电脑 | E115: 7,000.00 | F115: 2 | G115: 14,000.00 | H115: 14,000.00 | K115: 攀财资预〔2021〕1号 | M115: 整体预留 | N115: 100% | O115: 14,000.00 | P115: 教育收费安排
A116: 教 | B116: 203016 | C116: 市实验幼儿园 | D116: 小计 | G116: =SUM(G104:G115) -> 6,225,800.00 | H116: =SUM(H104:H115) -> 2,225,800.00 | J116: =SUM(J104:J115) -> 4,000,000.00 | O116: =SUM(O104:O115) -> 4,525,800.00
A117: 教 | B117: 203019 | C117: 攀枝花市体育中学 | D117: 台式电脑 | E117: 4,500.00 | F117: 14 | G117: 63,000.00 | H117: 63,000.00 | K117: 教育费附加 | M117: 整体预留 | N117: 100% | O117: 63,000.00
A118: 教 | B118: 203019 | C118: 攀枝花市体育中学 | D118: 笔记本电脑 | E118: 5,500.00 | F118: 6 | G118: 33,000.00 | H118: 33,000.00 | K118: 攀财资预【2021】1号 | M118: 整体预留 | N118: 100% | O118: 33,000.00
A119: 教 | B119: 203019 | C119: 攀枝花市体育中学 | D119: 打印机（彩色） | E119: 5,000.00 | F119: 1 | G119: 5,000.00 | H119: 5,000.00 | K119: 攀财资预【2021】1号 | M119: 整体预留 | N119: 100% | O119: 5,000.00
A120: 教 | B120: 203019 | C120: 攀枝花市体育中学 | D120: 器材及服装 | E120: 560,000.00 | F120: 1 | G120: 560,000.00 | H120: 560,000.00 | K120: 攀财资预【2021】1号 | M120: 整体预留 | N120: 100% | O120: 560,000.00
A121: 教 | B121: 203019 | C121: 攀枝花市体育中学 | D121: 校园文化建设（三期） | E121: 400,000.00 | F121: 1 | G121: 400,000.00 | H121: 400,000.00 | K121: 教育费附加 | M121: 整体预留 | N121: 100% | O121: 400,000.00
A122: 教 | B122: 203009 | C122: 市特殊教育学校 | D122: 台式计算机 | E122: 5,000.00 | F122: 5 | G122: 25,000.00 | J122: 25,000.00 | K122: 攀财资预【2021】4号 | M122: 不预留 | O122: 0.00
A123: 教 | B123: 203009 | C123: 市特殊教育学校 | D123: 其它扫描仪 | E123: 3,500.00 | F123: 1 | G123: 3,500.00 | J123: 3,500.00 | K123: 攀财资预【2021】4号 | M123: 不预留 | O123: 0.00
A124: 教 | B124: 203009 | C124: 市特殊教育学校 | D124: 小计 | G124: =SUM(G117:G123) -> 1,089,500.00 | H124: =SUM(H117:H123) -> 1,061,000.00 | J124: =SUM(J117:J123) -> 28,500.00 | O124: =SUM(O117:O123) -> 1,061,000.00
A125: 教 | B125: 203007 | C125: 攀枝花市经贸旅游学校 | D125: 物联网实训室用台式计算机 | E125: 4,500.00 | F125: 10 | G125: 45,000.00 | H125: 45,000.00 | I125: 0.00 | J125: 0.00 | K125: 攀财资教【2021】13号 | M125: 整体预留 | N125: 100% | O125: 45,000.00
A126: 教 | B126: 203007 | C126: 攀枝花市经贸旅游学校 | D126: 物联网实训室用空调5P | E126: 9,000.00 | F126: 2 | G126: 18,000.00 | H126: 18,000.00 | I126: 0.00 | J126: 0.00 | K126: 攀财资教【2021】13号 | M126: 整体预留 | N126: 100% | O126: 18,000.00
A127: 教 | B127: 203007 | C127: 攀枝花市经贸旅游学校 | D127: 物联网实训室用设备 | E127: 425,000.00 | F127: 1 | G127: 425,000.00 | H127: 425,000.00 | I127: 0.00 | J127: 0.00 | K127: 攀财资教【2021】13号 | M127: 整体预留 | N127: 100% | O127: 425,000.00
A128: 教 | B128: 203007 | C128: 攀枝花市经贸旅游学校 | D128: 物联网实训室用投影仪 | E128: 8,000.00 | F128: 1 | G128: 8,000.00 | H128: 8,000.00 | I128: 0.00 | J128: 0.00 | K128: 攀财资教【2021】13号 | M128: 整体预留 | N128: 100% | O128: 8,000.00
A129: 教 | B129: 203007 | C129: 攀枝花市经贸旅游学校 | D129: 物联网实训室用打印机 | E129: 2,000.00 | F129: 1 | G129: 2,000.00 | H129: 2,000.00 | I129: 0.00 | J129: 0.00 | K129: 攀财资教【2021】13号 | M129: 整体预留 | N129: 100% | O129: 2,000.00
A130: 教 | B130: 203007 | C130: 攀枝花市经贸旅游学校 | D130: 江北校区学生机房用计算机 | E130: 4,500.00 | F130: 65 | G130: 292,500.00 | H130: 292,500.00 | I130: 0.00 | J130: 0.00 | K130: 攀财资教【2021】13号 | M130: 整体预留 | N130: 100% | O130: 292,500.00
A131: 教 | B131: 203007 | C131: 攀枝花市经贸旅游学校 | D131: 沙盘实训室台式计算机 | E131: 4,500.00 | F131: 10 | G131: 45,000.00 | H131: 45,000.00 | I131: 0.00 | J131: 0.00 | K131: 攀财资教【2021】13号 | M131: 整体预留 | N131: 100% | O131: 45,000.00
A132: 教 | B132: 203007 | C132: 攀枝花市经贸旅游学校 | D132: 沙盘实训室用投影仪 | E132: 8,000.00 | F132: 1 | G132: 8,000.00 | H132: 8,000.00 | I132: 0.00 | J132: 0.00 | K132: 攀财资教【2021】13号 | M132: 整体预留 | N132: 100% | O132: 8,000.00
A133: 教 | B133: 203007 | C133: 攀枝花市经贸旅游学校 | D133: 江北校区计算机房空调 | E133: 8,000.00 | F133: 5 | G133: 40,000.00 | H133: 40,000.00 | I133: 0.00 | J133: 0.00 | K133: 攀财资教【2021】13号 | M133: 整体预留 | N133: 100% | O133: 40,000.00
A134: 教 | B134: 203007 | C134: 攀枝花市经贸旅游学校 | D134: 江北校区行政楼装修和网络改造 | E134: 1,200,000.00 | F134: 1 | G134: 1,200,000.00 | H134: 1,200,000.00 | I134: 0.00 | J134: 0.00 | K134: 攀财资教【2021】13号 | M134: 整体预留 | N134: 100% | O134: 1,200,000.00
A135: 教 | B135: 203007 | C135: 攀枝花市经贸旅游学校 | D135: 江北宿舍改造 | E135: 1,600,000.00 | F135: 1 | G135: 1,600,000.00 | H135: 1,600,000.00 | I135: 0.00 | J135: 0.00 | K135: 攀财资教【2021】13号 | M135: 整体预留 | N135: 100% | O135: 1,600,000.00
A136: 教 | B136: 203007 | C136: 攀枝花市经贸旅游学校 | D136: 财经商贸专业高考竞赛软件 | E136: 550,000.00 | F136: 1 | G136: 550,000.00 | H136: 60,000.00 | I136: 490,000.00 | J136: 0.00 | K136: 攀财资教【2020】106号和攀财资教【2020】13号 | M136: 整体预留 | N136: 100% | O136: 550,000.00
A137: 教 | B137: 203007 | C137: 攀枝花市经贸旅游学校 | D137: 旅游专业虚拟仿真实训室 | E137: 1,500,000.00 | F137: 1 | G137: 1,500,000.00 | H137: 0.00 | I137: 1,500,000.00 | J137: 0.00 | K137: 攀财资教【2020】106号 | M137: 整体预留 | N137: 100% | O137: 1,500,000.00
A138: 教 | B138: 203007 | C138: 攀枝花市经贸旅游学校 | D138: 办公用计算机 | E138: 4,500.00 | F138: 3 | G138: 13,500.00 | H138: 13,500.00 | I138: 0.00 | J138: 0.00 | K138: 攀财资教【2021】5号 | M138: 整体预留 | N138: 100% | O138: 13,500.00
A139: 教 | B139: 203007 | C139: 攀枝花市经贸旅游学校 | D139: 办公用打印机 | E139: 3,000.00 | F139: 5 | G139: 15,000.00 | H139: 15,000.00 | I139: 0.00 | J139: 0.00 | K139: 攀财资教【2021】5号 | M139: 整体预留 | N139: 100% | O139: 15,000.00
A140: 教 | B140: 203007 | C140: 攀枝花市经贸旅游学校 | D140: 1.5匹挂机（变频）空调 | E140: 3,000.00 | F140: 2 | G140: 6,000.00 | H140: 6,000.00 | I140: 0.00 | J140: 0.00 | K140: 攀财资教【2021】5号 | M140: 整体预留 | N140: 100% | O140: 6,000.00
A141: 教 | B141: 203007 | C141: 攀枝花市经贸旅游学校 | D141: 彩色打印复印扫描一体机 | E141: 8,000.00 | F141: 2 | G141: 16,000.00 | H141: 16,000.00 | I141: 0.00 | J141: 0.00 | K141: 攀财资教【2021】5号 | M141: 整体预留 | N141: 100% | O141: 16,000.00
A142: 教 | B142: 203007 | C142: 攀枝花市经贸旅游学校 | D142: 博艺楼、博训楼家具 | E142: 100,000.00 | F142: 1 | G142: 100,000.00 | H142: 100,000.00 | I142: 0.00 | J142: 0.00 | K142: 攀财资教【2021】5号 | M142: 整体预留 | N142: 100% | O142: 100,000.00
A143: 教 | B143: 203007 | C143: 攀枝花市经贸旅游学校 | D143: 复印机 | E143: 20,000.00 | F143: 1 | G143: 20,000.00 | H143: 20,000.00 | I143: 0.00 | J143: 0.00 | K143: 攀财资教【2021】5号 | M143: 整体预留 | N143: 100% | O143: 20,000.00
A144: 教 | B144: 203007 | C144: 攀枝花市经贸旅游学校 | D144: 江南校区一男生公寓、女生公寓太阳能设备拆除安装及局部防水修缮 | E144: 900,000.00 | F144: 1 | G144: 900,000.00 | H144: 900,000.00 | I144: 0.00 | J144: 0.00 | K144: 攀财资教【2021】5号 | M144: 整体预留 | N144: 100% | O144: 900,000.00
A145: 教 | B145: 203007 | C145: 攀枝花市经贸旅游学校 | D145: 江南校区新会议室用空调5P | E145: 12,000.00 | F145: 1 | G145: 12,000.00 | H145: 12,000.00 | I145: 0.00 | J145: 0.00 | K145: 攀财资教【2021】5号 | M145: 整体预留 | N145: 100% | O145: 12,000.00
A146: 教 | B146: 203007 | C146: 攀枝花市经贸旅游学校 | D146: 江南校区新会议室办公用家具 | E146: 200,000.00 | F146: 1 | G146: 200,000.00 | H146: 200,000.00 | I146: 0.00 | J146: 0.00 | K146: 攀财资教【2021】5号 | M146: 整体预留 | N146: 100% | O146: 200,000.00
A147: 教 | B147: 203007 | C147: 攀枝花市经贸旅游学校 | D147: 小计 | G147: =SUM(G125:G146) -> 7,016,000.00 | H147: =SUM(H125:H146) -> 5,026,000.00 | I147: =SUM(I125:I146) -> 1,990,000.00 | J147: =SUM(J125:J146) -> 0.00 | O147: =SUM(O125:O146) -> 7,016,000.00
A148: 教 | B148: 203012 | C148: 攀枝花市建筑工程学校 | D148: 运动场改造 | F148: 1批 | G148: 2,500,000.00 | J148: 2,500,000.00 | K148: 攀财资教【2021】13号 | M148: 整体预留 | N148: 100% | O148: =G148*N148 -> 2,500,000.00
A149: 教 | B149: 203012 | C149: 攀枝花市建筑工程学校 | D149: 第2学生宿舍水电改造 | F149: 1批 | G149: 1,100,000.00 | J149: 1,100,000.00 | K149: 攀财资教【2021】13号 | M149: 整体预留 | N149: 100% | O149: 1,100,000.00
A150: 教 | B150: 203012 | C150: 攀枝花市建筑工程学校 | D150: 无人机航空测绘实训设备备案已采20210616 | F150: 1批 | G150: 1,350,000.00 | I150: 1,350,000.00 | K150: 攀财资教【2020】106号 | M150: 整体预留 | N150: 100% | O150: 1,350,000.00
A151: 教 | B151: 203012 | C151: 攀枝花市建筑工程学校 | D151: 智能制造设备及软件备案已采20210616（分成2个包进行采购代理机构部分338万，网上竞价电脑部分27万） | F151: 1批 | G151: 3,650,000.00 | I151: 3,650,000.00 | K151: 攀财资教【2020】106号 | M151: 不预留 | O151: 0.00
A152: 教 | B152: 203012 | C152: 攀枝花市建筑工程学校 | D152: 第一教学楼厕所改造(已报20210629) | F152: 1批 | G152: 1,100,000.00 | J152: 1,100,000.00 | K152: 攀财资教【2021】5号 | M152: 整体预留 | N152: 100% | O152: 1,100,000.00
A153: 教 | B153: 203012 | C153: 攀枝花市建筑工程学校 | D153: 第1教学楼自消系统改造 | F153: 1批 | G153: 350,000.00 | J153: 350,000.00 | K153: 攀财资教【2021】5号 | M153: 整体预留 | N153: 100% | O153: 350,000.00
A154: 教 | B154: 203012 | C154: 攀枝花市建筑工程学校 | D154: 食堂改造及增添餐具 | F154: 1批 | G154: 340,000.00 | J154: 340,000.00 | K154: 攀财资教【2021】5号 | M154: 整体预留 | N154: 100% | O154: 340,000.00
A155: 教 | B155: 203012 | C155: 攀枝花市建筑工程学校 | D155: A3高速激光打印机(已报20210629) | E155: 20,000.00 | F155: 1台 | G155: 20,000.00 | J155: 20,000.00 | K155: 攀财资教【2021】5号 | M155: 整体预留 | N155: 100% | O155: 20,000.00
A156: 教 | B156: 203012 | C156: 攀枝花市建筑工程学校 | D156: A4自动双面打印机(已报20210629) | E156: 2,200.00 | F156: 4台 | G156: 8,800.00 | J156: 8,800.00 | K156: 攀财资教【2021】5号 | M156: 整体预留 | N156: 100% | O156: 8,800.00
A157: 教 | B157: 203012 | C157: 攀枝花市建筑工程学校 | D157: A4彩色自动双面打印机(已报20210629) | E157: 3,500.00 | F157: 1台 | G157: 3,500.00 | J157: 3,500.00 | K157: 攀财资教【2021】5号 | M157: 整体预留 | N157: 100% | O157: 3,500.00
A158: 教 | B158: 203012 | C158: 攀枝花市建筑工程学校 | D158: A3彩色打印机(已报20210629) | E158: 12,000.00 | F158: 1台 | G158: 12,000.00 | J158: 12,000.00 | K158: 攀财资教【2021】5号 | M158: 整体预留 | N158: 100% | O158: 12,000.00
A159: 教 | B159: 203012 | C159: 攀枝花市建筑工程学校 | D159: 大3P空调(已报20210629) | E159: 8,200.00 | F159: 3台 | G159: 24,600.00 | J159: 24,600.00 | K159: 攀财资教【2021】5号 | M159: 整体预留 | N159: 100% | O159: 24,600.00
A160: 教 | B160: 203012 | C160: 攀枝花市建筑工程学校 | D160: 大2P空调(已报20210629) | E160: 6,800.00 | F160: 4台 | G160: 27,200.00 | J160: 27,200.00 | K160: 攀财资教【2021】5号 | M160: 整体预留 | N160: 100% | O160: 27,200.00
A161: 教 | B161: 203012 | C161: 攀枝花市建筑工程学校 | D161: 1P挂机(已报20210629) | E161: 2,000.00 | F161: 3台 | G161: 6,000.00 | J161: 6,000.00 | K161: 攀财资教【2021】5号 | M161: 整体预留 | N161: 100% | O161: 6,000.00
A162: 教 | B162: 203012 | C162: 攀枝花市建筑工程学校 | D162: 台式计算机(已报20210629) | E162: 5,000.00 | F162: 8台 | G162: 40,000.00 | J162: 40,000.00 | K162: 攀财资教【2021】5号 | M162: 整体预留 | N162: 100% | O162: 40,000.00
A163: 教 | B163: 203012 | C163: 攀枝花市建筑工程学校 | D163: 信息中心运维设备(已报20210629) | F163: 1批 | G163: 73,000.00 | J163: 73,000.00 | K163: 攀财资教【2021】5号 | M163: 整体预留 | N163: 100% | O163: 73,000.00
A164: 教 | B164: 203012 | C164: 攀枝花市建筑工程学校 | D164: ERP电子和物理沙盘 | F164: 1批 | G164: 366,000.00 | J164: 366,000.00 | K164: 攀财资教【2021】5号 | M164: 整体预留 | N164: 100% | O164: 366,000.00
A165: 教 | B165: 203012 | C165: 攀枝花市建筑工程学校 | D165: 会计岗位实训室 | F165: 1批 | G165: 470,000.00 | J165: 470,000.00 | K165: 攀财资教【2021】5号 | M165: 整体预留 | N165: 100% | O165: 470,000.00
A166: 教 | B166: 203012 | C166: 攀枝花市建筑工程学校 | D166: 教练车 | E166: 80,000.00 | F166: 2台 | G166: 160,000.00 | J166: 160,000.00 | K166: 攀财资教【2021】5号 | M166: 整体预留 | N166: 100% | O166: 160,000.00
A167: 教 | B167: 203012 | C167: 攀枝花市建筑工程学校 | D167: 建筑专业云机房 | F167: 1间 | G167: 500,000.00 | J167: 500,000.00 | K167: 攀财资教【2021】5号 | M167: 整体预留 | N167: 100% | O167: 500,000.00
A168: 教 | B168: 203012 | C168: 攀枝花市建筑工程学校 | D168: 小计 | G168: =SUM(G148:G167) -> 12,101,100.00 | H168: =SUM(H148:H167) -> 0.00 | I168: =SUM(I148:I167) -> 5,000,000.00 | J168: =SUM(J148:J167) -> 7,101,100.00 | O168: =SUM(O148:O167) -> 8,451,100.00
A169: 教 | B169: 203010 | C169: 攀枝花广播电视大学 | D169: 空调机（已网上备案0707） | E169: 10,000.00 | F169: 10 | G169: 100,000.00 | H169: 100,000.00 | K169: 攀财资预【2021】1号 | M169: 整体预留 | N169: 100% | O169: =G169*N169 -> 100,000.00 | P169: 3P空调机
A170: 教 | B170: 203010 | C170: 攀枝花广播电视大学 | D170: 空调机（已网上备案0707） | E170: 3,750.00 | F170: 4 | G170: 15,000.00 | H170: 15,000.00 | K170: 攀财资预【2021】1号 | M170: 整体预留 | N170: 100% | O170: =G170*N170 -> 15,000.00 | P170: 1.5P空调机
A171: 教 | B171: 203010 | C171: 攀枝花广播电视大学 | D171: 显示设备（已网上备案0707） | E171: 1,320.00 | F171: 42 | G171: 55,440.00 | H171: 55,440.00 | K171: 攀财资预【2021】1号 | M171: 整体预留 | N171: 100% | O171: =G171*N171 -> 55,440.00 | P171: 电脑显示器
A172: 教 | B172: 203010 | C172: 攀枝花广播电视大学 | D172: 台式计算机（已网上备案0707） | E172: 4,000.00 | F172: 5 | G172: 20,000.00 | H172: 20,000.00 | K172: 攀财资预【2021】1号 | M172: 整体预留 | N172: 100% | O172: =G172*N172 -> 20,000.00
A173: 教 | B173: 203010 | C173: 攀枝花广播电视大学 | D173: 打印设备（已网上备案0707） | E173: 1,650.00 | F173: 1 | G173: 1,650.00 | H173: 1,650.00 | K173: 攀财资预【2021】1号 | M173: 整体预留 | N173: 100% | O173: =G173*N173 -> 1,650.00 | P173: 黑白激光打印机
A174: 教 | B174: 203010 | C174: 攀枝花广播电视大学 | D174: 小计 | G174: =SUM(G169:G173) -> 192,090.00 | H174: =SUM(H169:H173) -> 192,090.00 | I174: =SUM(I169:I173) -> 0.00 | J174: =SUM(J169:J173) -> 0.00 | O174: =SUM(O169:O173) -> 192,090.00
A175: 教 | B175: 203015 | C175: 攀枝花市教育考试院 | D175: 笔记本电脑（备案） | E175: 7,000.00 | F175: 1 | G175: =E175*F175 -> 7,000.00 | H175: 7,000.00 | K175: 攀财资预[2021]1号-教-1174 | M175: 整体预留 | N175: 100% | O175: =G175*N175 -> 7,000.00
A176: 教 | B176: 203015 | C176: 攀枝花市教育考试院 | D176: 激光打印机 | E176: 3,000.00 | F176: 1 | G176: =E176*F176 -> 3,000.00 | H176: 3,000.00 | K176: 攀财资预[2021]1号-教-1174 | M176: 整体预留 | N176: 100% | O176: 3,000.00
A177: 教 | B177: 203015 | C177: 攀枝花市教育考试院 | D177: 投影仪 | E177: 2,800.00 | F177: 1 | G177: =E177*F177 -> 2,800.00 | H177: 2,800.00 | K177: 攀财资预[2021]1号-教-1174 | M177: 整体预留 | N177: 100% | O177: 2,800.00
A178: 教 | B178: 203015 | C178: 攀枝花市教育考试院 | D178: 台式电脑（保密电脑） | E178: 6,000.00 | F178: 1 | G178: =E178*F178 -> 6,000.00 | H178: 6,000.00 | K178: 攀财资预[2021]一号-教-1174 | M178: 整体预留 | N178: 100% | O178: 6,000.00
A179: 教 | B179: 203015 | C179: 攀枝花市教育考试院 | D179: 台式电脑 | E179: 5,000.00 | F179: 1 | G179: =E179*F179 -> 5,000.00 | H179: 5,000.00 | K179: 攀财资预[2021]1号-教-1174 | M179: 整体预留 | N179: 100% | O179: 5,000.00
A180: 教 | B180: 203015 | C180: 攀枝花市教育考试院 | D180: 小计 | G180: =SUM(G175:G179) -> 23,800.00 | H180: =SUM(H175:H179) -> 23,800.00 | I180: =SUM(I175:I179) -> 0.00 | J180: =SUM(J175:J179) -> 0.00 | O180: =SUM(O175:O179) -> 23,800.00
A181: 教 | B181: 203011 | C181: 市教科所 | D181: 笔记本电脑 | E181: 6,000.00 | F181: 30 | G181: 180,000.00 | H181: 180,000.00 | K181: 攀财资预[2021]1号 | M181: 整体预留 | N181: 100% | O181: 180,000.00
A182: 教 | B182: 203011 | C182: 市教科所 | D182: 小计 | G182: =SUM(G181) -> 180,000.00 | H182: =SUM(H181) -> 180,000.00 | O182: =SUM(O181) -> 180,000.00
A183: 教 | B183: 203013 | C183: 攀枝花市电化教育（技术装备）中心 | D183: 打印机 | E183: 3,000.00 | F183: 3 | G183: =E183*F183 -> 9,000.00 | H183: 9,000.00 | K183: 攀财资预[2021]1号 | M183: 整体预留 | N183: 100% | O183: 9,000.00
A184: 教 | B184: 203013 | C184: 攀枝花市电化教育（技术装备）中心 | D184: 台式电脑 | E184: 5,000.00 | F184: 4 | G184: =E184*F184 -> 20,000.00 | H184: 20,000.00 | K184: 攀财资预[2021]1号 | M184: 整体预留 | N184: 100% | O184: 20,000.00
A185: 教 | B185: 203013 | C185: 攀枝花市电化教育（技术装备）中心 | D185: 教育信息化软件平台 | E185: 3,000,000.00 | F185: 1 | G185: =E185*F185 -> 3,000,000.00 | H185: 3,000,000.00 | K185: 攀财资预[2021]1号 | M185: 部分预留 | N185: 60% | O185: 1,800,000.00
A186: 教 | B186: 203013 | C186: 攀枝花市电化教育（技术装备）中心 | D186: 笔记本电脑 | E186: 7,000.00 | F186: 5 | G186: =E186*F186 -> 35,000.00 | H186: 35,000.00 | K186: 攀财资预[2021]1号 | M186: 整体预留 | N186: 100% | O186: 35,000.00
A187: 教 | B187: 203013 | C187: 攀枝花市电化教育（技术装备）中心 | D187: 中小学教师信息技术应用能力提升工程2.0项目 | E187: 2,000,000.00 | F187: 1 | G187: 2,000,000.00 | H187: 2,000,000.00 | K187: 攀财资预[2021]1号 | M187: 整体预留 | N187: 100% | O187: 2,000,000.00 | P187: 按照200元/人，预计10000人，即总额200万，统一招标，分学校支付
A188: 教 | B188: 203013 | C188: 攀枝花市电化教育（技术装备）中心 | D188: 小计 | G188: =SUM(G183:G187) -> 5,064,000.00 | H188: =SUM(H183:H187) -> 5,064,000.00 | I188: =SUM(I183:I187) -> 0.00 | J188: =SUM(J183:J187) -> 0.00 | O188: =SUM(O183:O187) -> 3,864,000.00
A189: 教 | B189: 203014 | C189: 攀枝花市学校后勤保障服务中心 | D189: 印刷品（学生作业本） | E189: 1.00 | F189: 3480000 | G189: =E189*F189 -> 3,480,000.00 | L189: 3,480,000.00 | M189: 不预留 | O189: 0.00
A190: 教 | B190: 203014 | C190: 攀枝花市学校后勤保障服务中心 | D190: 分体式空调机 | E190: 3,200.00 | F190: 3 | G190: =E190*F190 -> 9,600.00 | H190: 9,600.00 | K190: 攀财资预〔2021〕1号 | M190: 整体预留 | N190: 100% | O190: 9,600.00
A191: 教 | B191: 203014 | C191: 攀枝花市学校后勤保障服务中心 | D191: 便携式计算机（笔记本计算机） | E191: 6,000.00 | F191: 2 | G191: =E191*F191 -> 12,000.00 | H191: 12,000.00 | K191: 攀财资预〔2021〕1号 | M191: 整体预留 | N191: 100% | O191: 12,000.00
A192: 教 | B192: 203014 | C192: 攀枝花市学校后勤保障服务中心 | D192: 扫描仪 | E192: 3,500.00 | F192: 1 | G192: =E192*F192 -> 3,500.00 | H192: 3,500.00 | K192: 攀财资预〔2021〕1号 | M192: 整体预留 | N192: 100% | O192: 3,500.00
A193: 教 | B193: 203014 | C193: 攀枝花市学校后勤保障服务中心 | D193: 小计 | G193: =SUM(G189:G192) -> 3,505,100.00 | H193: =SUM(H189:H192) -> 25,100.00 | I193: =SUM(I189:I192) -> 0.00 | J193: =SUM(J189:J192) -> 0.00 | L193: =SUM(L189:L192) -> 3,480,000.00 | O193: =SUM(O189:O192) -> 25,100.00
A194: 教 | B194: 203020 | C194: 攀枝花市体育场馆中心 | D194: 台式电脑 | E194: 5,000.00 | F194: 1 | G194: 5,000.00 | H194: 5,000.00 | I194: 0.00 | J194: 0.00 | K194: 攀财资预〔2021〕1号 | M194: 整体预留 | N194: 100% | O194: 5,000.00
A195: 教 | B195: 203020 | C195: 攀枝花市体育场馆中心 | D195: 笔记本电脑 | E195: 6,000.00 | F195: 1 | G195: 6,000.00 | H195: 6,000.00 | I195: 0.00 | J195: 0.00 | K195: 攀财资预〔2021〕1号 | M195: 整体预留 | N195: 100% | O195: 6,000.00
A196: 教 | B196: 203020 | C196: 攀枝花市体育场馆中心 | D196: 激光打印机 | E196: 2,500.00 | F196: 2 | G196: 5,000.00 | H196: 5,000.00 | I196: 0.00 | J196: 0.00 | K196: 攀财资预〔2021〕1号 | M196: 整体预留 | N196: 100% | O196: 5,000.00
A197: 教 | B197: 203020 | C197: 攀枝花市体育场馆中心 | D197: 激光打印机 | E197: 3,000.00 | F197: 1 | G197: 3,000.00 | H197: 3,000.00 | I197: 0.00 | J197: 0.00 | K197: 攀财资预〔2021〕1号 | M197: 整体预留 | N197: 100% | O197: 3,000.00
A198: 教 | B198: 203020 | C198: 攀枝花市体育场馆中心 | D198: 固定式投影仪 | E198: 25,000.00 | F198: 1 | G198: 25,000.00 | H198: 25,000.00 | I198: 0.00 | J198: 0.00 | K198: 攀财资预〔2021〕1号 | M198: 整体预留 | N198: 100% | O198: 25,000.00
A199: 教 | B199: 203020 | C199: 攀枝花市体育场馆中心 | D199: 体育器材 | F199: 一批 | G199: 200,000.00 | H199: 200,000.00 | I199: 0.00 | J199: 0.00 | K199: 2021体育彩票公益金 | M199: 整体预留 | N199: 100% | O199: 200,000.00
A200: 教 | B200: 203020 | C200: 攀枝花市体育场馆中心 | D200: 小计 | G200: =SUM(G194:G199) -> 244,000.00 | H200: =SUM(H194:H199) -> 244,000.00 | O200: =SUM(O194:O199) -> 244,000.00
A201: 教 | B201: 203021 | C201: 攀枝花市社会体育指导中心 | D201: 台式电脑 | E201: 5,000.00 | F201: 2台 | G201: 10,000.00 | H201: 10,000.00 | K201: 攀财资预〔2021〕1号 | M201: 整体预留 | N201: 100% | O201: 10,000.00
A202: 教 | B202: 203021 | C202: 攀枝花市社会体育指导中心 | D202: 小计 | G202: =SUM(G201) -> 10,000.00 | H202: =SUM(H201) -> 10,000.00 | O202: =SUM(O201) -> 10,000.00
... 88 more rows

Sheet Sheet2

Sheet Sheet3
